fUSD/lending_fUSD_20250710
["ID","MTS","AMOUNT","RATE_DAILY","PERIOD"]
[370732140,1752105890840,264.77,0.00030136,120]
[370732148,1752105993173,1026.2278424,0.00030136,120]
[370732159,1752106232331,-250.0,0.00015345,2]
[370732160,1752106232341,-503.0,0.00016854,2]
[370732161,1752106232351,-250.0,0.00016879,2]
[370732162,1752106232361,-63.46,0.00016879,2]
[370732163,1752106232372,-236.54,0.00016879,2]
[370732164,1752106232383,-53.45060142,0.0001757,2]
[370732166,1752106232395,-196.54939858,0.0001757,2]
[370732167,1752106232405,-503.0,0.00018123,3]
[370732168,1752106232414,-1000.0,0.00019139,2]
[370732169,1752106232425,-164.4,0.00019159,2]
[370732170,1752106232434,-214.07,0.00019178,2]
[370732171,1752106232444,-200.0,0.00019204,7]
[370732172,1752106232454,-160.46,0.00019214,2]
[370732173,1752106232464,-172.11,0.00019327,2]
[370732174,1752106232473,-503.0,0.00019392,5]
[370732175,1752106232483,-300.0,0.00019394,2]
[370732176,1752106232493,-1200.0,0.00019394,2]
[370732177,1752106232503,-18694.12,0.00019395,2]
[370732178,1752106232512,-4654.04,0.00019469,2]
[370732179,1752106232522,-250.0,0.00019616,2]
[370732180,1752106232532,-207.4,0.00019635,2]
[370732181,1752106232541,-167.59,0.00019795,2]
[370732182,1752106232551,-2059.68580294,0.000199,2]
[370732183,1752106232561,-500.0,0.00019999,2]
[370732184,1752106232570,-627.0268771,0.00020095,2]
[370732185,1752106232580,-362.31,0.00020219,2]
[370732186,1752106232590,-2059.68580283,0.00020279,3]
[370732187,1752106232600,-362.31,0.0002032,2]
[370732188,1752106232610,-1183.10793737,0.00020347,2]
[370732189,1752106232619,-1000.0,0.00020347,2]
[370732190,1752106232630,-457.21,0.00020388,2]
[370732191,1752106232641,-1374.136096,0.00020404,4]
[370732192,1752106232651,-178.39986515,0.00020408,2]
[370732193,1752106232661,-210.38436402,0.00020416,2]
[370732194,1752106232671,-837.2675624,0.00020416,2]
[370732195,1752106232681,-160.0,0.00020416,2]
[370732196,1752106232692,-1183.10793734,0.00020419,2]
[370732197,1752106232702,-362.31,0.00020421,2]
[370732198,1752106232712,-627.0268771,0.00020428,2]
[370732199,1752106232722,-300.0,0.00020435,2]
[370732200,1752106232732,-300.0,0.00020435,2]
[370732201,1752106232742,-500.0,0.00020446,2]
[370732202,1752106232752,-499.57355239,0.00020446,2]
[370732203,1752106232762,-500.0,0.00020446,2]
[370732204,1752106232771,-2731.446,0.00020447,2]
[370732205,1752106232781,-171.181,0.00020447,2]
[370732206,1752106232791,-177.60569714,0.00020447,2]
[370732208,1752106232800,-244.47889136,0.00020447,2]
[370732210,1752106232809,-500.0,0.00020447,2]
[370732212,1752106232819,-10593.3617,0.00020447,2]
[370732214,1752106232828,-6922.53254507,0.00020447,2]
[370732230,1752106232952,-515.0,0.00020447,2]
[370732232,1752106232963,-4797.94131397,0.00020447,2]
[370732236,1752106232996,-347.77308168,0.00020447,2]
[370732755,1752106238319,-521.85,0.00020447,2]
[370732756,1752106238331,-10635.61444683,0.00020447,2]
[370732757,1752106238462,-311.184893,0.00020447,2]
[370732758,1752106238474,-6469.72557701,0.00020447,2]
[370732762,1752106238989,-4207.12426543,0.00020447,2]
[370732763,1752106239001,-601.6979223,0.00020447,2]
[370732764,1752106239015,-2224.31390383,0.00020447,2]
[370732890,1752106240675,-5830.62444406,0.00020447,2]
[370733193,1752106246456,-86914.27354366,0.00020447,2]
[370733194,1752106246469,-500.0,0.00020447,2]
[370733195,1752106246643,-8112.90155699,0.00020447,2]
[370733196,1752106246655,-1245.22080278,0.00020447,2]
[370733281,1752106547312,151.57931401,0.00015,20]
[370733286,1752106767921,53698.31399225,0.00030137,120]
[370733287,1752106777830,53698.31399225,0.00030137,120]
[370733294,1752107154030,2000.0,0.00015,10]
[370733315,1752107324705,150.0,0.00015,20]
[370733339,1752107431490,-801.73694016,0.0001363,2]
[370733346,1752107431547,-181.86285884,0.0001363,2]
[370733348,1752107431556,-700.0,0.00013999,2]
[370733350,1752107431566,-1200.0,0.00013999,2]
[370733352,1752107431576,-5961.70634418,0.00014,2]
[370733354,1752107431587,-441.2444116,0.00014,2]
[370733355,1752107431605,-390.87284385,0.00014,2]
[370733356,1752107431616,-369.71962528,0.00014,2]
[370733357,1752107431628,-132373.8159962,0.00014,2]
[370733358,1752107431637,-250.0,0.00015,2]
[370733359,1752107431647,-150176.86385053,0.000151,2]
[370733360,1752107431656,-499.22912814,0.00015333,2]
[370733361,1752107431665,-500.0,0.00015333,2]
[370733362,1752107431677,-342.85330404,0.00015333,2]
[370733363,1752107431686,-625.20950986,0.00015333,2]
[370733364,1752107431696,-1680.0,0.00015399,2]
[370733365,1752107431705,-488.31356713,0.00015745,2]
[370733366,1752107431715,-772.38045593,0.00015881,2]
[370733367,1752107431724,-468.57894584,0.0001685,2]
[370733368,1752107431734,-500.0,0.0001685,2]
[370733369,1752107431743,-387.89988056,0.0001685,2]
[370733370,1752107431753,-500.0,0.0001685,2]
[370733371,1752107431763,-500.0,0.0001685,2]
[370733372,1752107431772,-500.0,0.0001685,2]
[370733373,1752107431782,-500.0,0.0001685,2]
[370733374,1752107431791,-500.0,0.0001685,2]
[370733375,1752107431800,-500.0,0.0001685,2]
[370733376,1752107431810,-500.0,0.0001685,2]
[370733377,1752107431820,-500.0,0.0001685,2]
[370733378,1752107431830,-500.0,0.0001685,2]
[370733379,1752107431839,-500.0,0.0001685,2]
[370733380,1752107431848,-500.0,0.0001685,2]
[370733381,1752107431858,-500.0,0.0001685,2]
[370733382,1752107431867,-500.0,0.0001685,2]
[370733383,1752107431876,-500.0,0.0001685,2]
[370733384,1752107431885,-500.0,0.0001685,2]
[370733385,1752107431895,-500.0,0.0001685,2]
[370733386,1752107431904,-500.0,0.0001685,2]
[370733387,1752107431913,-500.0,0.0001685,2]
[370733388,1752107431922,-500.0,0.0001685,2]
[370733389,1752107431932,-500.0,0.0001685,2]
[370733390,1752107431941,-500.0,0.0001685,2]
[370733391,1752107431950,-350.0,0.0001685,2]
[370733392,1752107431959,-500.0,0.0001685,2]
[370733393,1752107431968,-500.0,0.0001685,2]
[370733394,1752107431978,-500.0,0.0001685,2]
[370733395,1752107431987,-500.0,0.0001685,2]
[370733396,1752107431998,-500.0,0.0001685,2]
[370733397,1752107432007,-500.0,0.0001685,2]
[370733398,1752107432016,-500.0,0.0001685,2]
[370733399,1752107432025,-500.0,0.0001685,2]
[370733400,1752107432034,-389.84589597,0.0001685,2]
[370733401,1752107432044,-486.77693515,0.0001685,2]
[370733402,1752107432053,-217.88675809,0.0001685,2]
[370733403,1752107432063,-500.0,0.0001685,2]
[370733404,1752107432072,-500.0,0.0001685,2]
[370733405,1752107432082,-500.0,0.0001685,2]
[370733406,1752107432091,-500.0,0.0001685,2]
[370733407,1752107432101,-500.0,0.0001685,2]
[370733408,1752107432111,-500.0,0.0001685,2]
[370733409,1752107432120,-500.0,0.0001685,2]
[370733411,1752107432130,-500.0,0.0001685,2]
[370733414,1752107432140,-500.0,0.0001685,2]
[370733415,1752107432150,-500.0,0.0001685,2]
[370733417,1752107432160,-500.0,0.0001685,2]
[370733419,1752107432169,-500.0,0.0001685,2]
[370733422,1752107432179,-500.0,0.0001685,2]
[370733424,1752107432189,-500.0,0.0001685,2]
[370733426,1752107432199,-500.0,0.0001685,2]
[370733428,1752107432208,-500.0,0.0001685,2]
[370733430,1752107432218,-500.0,0.0001685,2]
[370733432,1752107432228,-500.0,0.0001685,2]
[370733434,1752107432238,-500.0,0.0001685,2]
[370733435,1752107432248,-500.0,0.0001685,2]
[370733438,1752107432258,-500.0,0.0001685,2]
[370733440,1752107432268,-500.0,0.0001685,2]
[370733442,1752107432278,-398.48039598,0.0001685,2]
[370733444,1752107432287,-500.0,0.0001685,2]
[370733446,1752107432297,-500.0,0.0001685,2]
[370733448,1752107432306,-500.0,0.0001685,2]
[370733449,1752107432315,-500.0,0.0001685,2]
[370733452,1752107432325,-500.0,0.0001685,2]
[370733454,1752107432335,-500.0,0.0001685,2]
[370733455,1752107432344,-500.0,0.0001685,2]
[370733458,1752107432354,-500.0,0.0001685,2]
[370733459,1752107432364,-500.0,0.0001685,2]
[370733461,1752107432373,-500.0,0.0001685,2]
[370733464,1752107432384,-500.0,0.0001685,2]
[370733466,1752107432393,-500.0,0.0001685,2]
[370733468,1752107432403,-500.0,0.0001685,2]
[370733470,1752107432413,-500.0,0.0001685,2]
[370733472,1752107432423,-500.0,0.0001685,2]
[370733474,1752107432432,-500.0,0.0001685,2]
[370733476,1752107432441,-500.0,0.0001685,2]
[370733478,1752107432451,-500.0,0.0001685,2]
[370733480,1752107432460,-500.0,0.0001685,2]
[370733482,1752107432470,-500.0,0.0001685,2]
[370733483,1752107432479,-500.0,0.0001685,2]
[370733485,1752107432489,-500.0,0.0001685,2]
[370733486,1752107432499,-450.0,0.0001685,2]
[370733487,1752107432509,-500.0,0.0001685,2]
[370733488,1752107432518,-301.7,0.00016853,2]
[370733489,1752107432528,-301.38,0.00016853,2]
[370733490,1752107432538,-303.31,0.00016853,2]
[370733491,1752107432548,-302.19,0.00016854,2]
[370733492,1752107432558,-300.36,0.00016854,2]
[370733493,1752107432568,-304.53,0.00016854,2]
[370733494,1752107432578,-303.34,0.00016854,2]
[370733496,1752107432588,-302.98,0.00016854,2]
[370733497,1752107432598,-304.54,0.00016854,2]
[370733499,1752107432608,-302.09,0.00016854,2]
[370733501,1752107432617,-302.92,0.00016854,2]
[370733503,1752107432627,-301.71,0.00016854,2]
[370733505,1752107432636,-303.19,0.00016854,2]
[370733507,1752107432646,-303.11,0.00016854,2]
[370733509,1752107432655,-1448.0,0.00016939,2]
[370733511,1752107432665,-500.0,0.00016959,2]
[370733513,1752107432676,-300.0,0.00017,2]
[370733516,1752107432688,-500.69701382,0.00017,7]
[370733518,1752107432699,-510.0,0.00017392,2]
[370733520,1752107432708,-1000.0,0.0001744,2]
[370733522,1752107432719,-6899.20310383,0.00018,2]
[370733524,1752107432733,-57547.99451363,0.00018,2]
[370733526,1752107432742,-170.40309459,0.00018308,2]
[370733528,1752107432755,-200.0,0.00018446,7]
[370733530,1752107432765,-250.0,0.00018539,2]
[370733533,1752107432775,-510.0,0.00018724,3]
[370733535,1752107432785,-2038.52,0.0001917,2]
[370733537,1752107432795,-250.0,0.00019277,2]
[370733539,1752107432804,-151.14,0.0001939,2]
[370733541,1752107432814,-171.91592274,0.0001939,2]
[370733543,1752107432823,-295540.54746904,0.000194,2]
[370733545,1752107432835,-35000.0,0.000194,2]
[370733548,1752107432855,-51725.96228745,0.000194,2]
[370733552,1752107432879,-47860.38970811,0.000194,2]
[370733554,1752107432891,-3999.05922783,0.000194,2]
[370733701,1752107437526,-348.4,0.00013699,2]
[370733702,1752107437536,-20699.51016389,0.000194,2]
[370733703,1752107437586,-2358.37206008,0.000194,2]
[370733874,1752107439662,-1406.836371,0.00015233,2]
[370733876,1752107439672,-4156.54762402,0.000194,2]
[370734040,1752107442551,-1406.83637095,0.00016577,2]
[370734042,1752107442560,-6124.96288527,0.000194,2]
[370734043,1752107442608,-1175.58205069,0.000194,2]
[370734044,1752107442672,-616.36239535,0.000194,2]
[370734045,1752107442687,-641.99246739,0.000194,2]
[370734046,1752107442698,-565.99524606,0.000194,2]
[370734047,1752107442709,-254.71326915,0.000194,2]
[370734287,1752107445519,-856.36107788,0.000194,2]
[370734288,1752107445531,-69286.93753384,0.000194,2]
[370734289,1752107445556,-44679.59337229,0.000194,2]
[370734290,1752107445568,-6890.3444,0.000194,2]
[370734291,1752107445579,-14605.2431335,0.000194,2]
[370734292,1752107445591,-311.7,0.000194,2]
[370734293,1752107445603,-433.97561987,0.000194,2]
[370734294,1752107445648,-4.33070082,0.000194,2]
[370734295,1752107445669,-5971.29257818,0.000194,2]
[370734296,1752107445683,-1802.00002,0.000194,2]
[370734297,1752107445699,-1587.03359657,0.000194,2]
[370734298,1752107445776,-2014.31283137,0.000194,2]
[370734299,1752107445832,-648.85139943,0.000194,2]
[370734300,1752107445844,-1042.97891082,0.000194,2]
[370734301,1752107445856,-1831.41327984,0.000194,2]
[370734302,1752107445888,-1406.83637095,0.00017921,2]
[370734303,1752107445898,-21654.3328386,0.000194,2]
[370734304,1752107445910,-24539.00334209,0.000194,2]
[370734348,1752107645942,32218.98800775,0.00030137,120]
[370734406,1752108252475,1165.35,0.0003013,120]
[370734424,1752108631656,-250.0,0.00015,2]
[370734425,1752108631666,-304.7,0.00015976,2]
[370734426,1752108631675,-305.88,0.00015976,2]
[370734427,1752108631685,-300.48,0.00015976,2]
[370734428,1752108631695,-304.37,0.00015988,2]
[370734429,1752108631705,-305.65,0.00015988,2]
[370734430,1752108631715,-228.77376402,0.00016007,2]
[370734431,1752108631739,-76.02623598,0.00016007,2]
[370734432,1752108631749,-302.08,0.00016007,2]
[370734433,1752108631759,-51.7418691,0.00016007,2]
[370734434,1752108631770,-250.1481309,0.00016007,2]
[370734435,1752108631780,-324.8518691,0.00016037,2]
[370734436,1752108631791,-348.77459194,0.00016037,2]
[370734437,1752108631803,-267.76080038,0.00016037,2]
[370734438,1752108631815,-258.61273858,0.00016037,2]
[370734439,1752108631824,-67.08526489,0.00016039,2]
[370734440,1752108631836,-238.42473511,0.00016039,2]
[370734441,1752108631845,-207.48910531,0.00016039,2]
[370734442,1752108631865,-94.08089469,0.00016039,2]
[370734443,1752108631875,-302.32,0.00016039,2]
[370734444,1752108631884,-300.77,0.00016039,2]
[370734445,1752108631894,-305.23,0.00016039,2]
[370734446,1752108631903,-304.18,0.00016039,2]
[370734447,1752108631913,-305.32,0.00016039,2]
[370734448,1752108631922,-550.0,0.00016039,2]
[370734449,1752108631932,-225.0,0.0001604,2]
[370734450,1752108631942,-300.56,0.0001604,2]
[370734451,1752108631951,-300.67,0.0001604,2]
[370734452,1752108631961,-303.56,0.0001604,2]
[370734453,1752108631970,-302.64,0.0001604,2]
[370734454,1752108631980,-300.7,0.0001604,2]
[370734461,1752108632083,-304.26,0.0001604,2]
[370734462,1752108632092,-82.10288045,0.0001604,2]
[370734463,1752108632108,-221.51711955,0.0001604,2]
[370734464,1752108632118,-300.46,0.0001604,2]
[370734465,1752108632128,-303.25,0.0001604,2]
[370734466,1752108632137,-305.22,0.0001604,2]
[370734467,1752108632146,-305.61,0.0001604,2]
[370734468,1752108632156,-305.95,0.0001604,2]
[370734469,1752108632166,-304.94,0.0001604,2]
[370734470,1752108632175,-301.7,0.0001604,2]
[370734471,1752108632185,-303.97,0.0001604,2]
[370734472,1752108632194,-301.0,0.0001604,2]
[370734473,1752108632203,-303.62,0.0001604,2]
[370734474,1752108632213,-304.68,0.0001604,2]
[370734475,1752108632222,-302.88,0.0001604,2]
[370734476,1752108632232,-305.51,0.00016041,2]
[370734477,1752108632242,-300.35,0.00016041,2]
[370734478,1752108632252,-300.22,0.00016041,2]
[370734479,1752108632261,-304.21,0.00016045,2]
[370734480,1752108632271,-301.11,0.00016045,2]
[370734481,1752108632280,-301.34,0.00016066,2]
[370734482,1752108632290,-300.75,0.00016066,2]
[370734483,1752108632299,-303.86,0.00016066,2]
[370734484,1752108632308,-305.19,0.00016177,2]
[370734485,1752108632318,-305.48,0.00016177,2]
[370734486,1752108632327,-225.0,0.0001645,2]
[370734487,1752108632337,-300.0,0.000165,2]
[370734488,1752108632346,-300.0,0.000165,2]
[370734489,1752108632355,-900.0,0.00016711,2]
[370734490,1752108632365,-2900.0,0.00016711,2]
[370734491,1752108632376,-225.0,0.0001686,2]
[370734492,1752108632386,-511.0,0.00017055,2]
[370734493,1752108632395,-1000.0,0.00017137,2]
[370734494,1752108632404,-1382.11,0.0001714,2]
[370734495,1752108632415,-200.0,0.00017236,7]
[370734496,1752108632424,-225.0,0.0001727,2]
[370734497,1752108632433,-1680.0,0.00017621,2]
[370734498,1752108632442,-225.0,0.0001768,2]
[370734499,1752108632452,-167.27,0.00017686,2]
[370734500,1752108632461,-900.0,0.00017807,2]
[370734501,1752108632471,-2900.0,0.00017807,2]
[370734502,1752108632480,-500.0,0.00018001,2]
[370734503,1752108632489,-225.0,0.0001809,2]
[370734504,1752108632499,-500.0,0.00018091,2]
[370734505,1752108632508,-500.0,0.00018181,2]
[370734506,1752108632518,-500.0,0.00018272,2]
[370734507,1752108632528,-500.0,0.00018362,2]
[370734508,1752108632537,-500.0,0.00018452,2]
[370734509,1752108632546,-511.0,0.00018487,3]
[370734510,1752108632556,-170.12134162,0.000185,2]
[370734511,1752108632568,-54.87865838,0.000185,2]
[370734512,1752108632578,-500.0,0.00018542,2]
[370734513,1752108632587,-500.0,0.00018633,2]
[370734514,1752108632597,-500.0,0.00018723,2]
[370734515,1752108632607,-500.0,0.00018813,2]
[370734516,1752108632616,-150.0,0.00018856,2]
[370734517,1752108632625,-900.0,0.00018903,2]
[370734518,1752108632635,-2900.0,0.00018903,2]
[370734519,1752108632644,-500.0,0.00018903,2]
[370734520,1752108632654,-225.0,0.0001891,2]
[370734521,1752108632664,-627.0268772,0.00018916,2]
[370734522,1752108632673,-500.0,0.00018993,2]
[370734523,1752108632683,-934.47,0.00019049,2]
[370734524,1752108632693,-500.0,0.00019084,2]
[370734525,1752108632702,-250.0,0.00019115,2]
[370734526,1752108632712,-500.0,0.00019174,2]
[370734527,1752108632721,-500.0,0.00019264,2]
[370734528,1752108632731,-1000.0,0.00019279,2]
[370734529,1752108632740,-4567.76194022,0.0001929,2]
[370734530,1752108632749,-1215.58906827,0.000193,2]
[370734531,1752108632759,-703.4181855,0.000193,2]
[370734532,1752108632768,-225.0,0.0001932,2]
[370734533,1752108632777,-164.66460368,0.00019344,2]
[370734534,1752108632786,-500.0,0.00019354,2]
[370734535,1752108632796,-2351.0,0.00019362,2]
[370734536,1752108632805,-500.0,0.00019399,2]
[370734537,1752108632815,-500.0,0.00019399,2]
[370734538,1752108632825,-500.0,0.00019399,2]
[370734539,1752108632834,-399.61619714,0.00019399,2]
[370734540,1752108632843,-355.97127659,0.00019399,2]
[370734541,1752108632853,-500.0,0.00019399,2]
[370734542,1752108632862,-500.0,0.00019399,2]
[370734543,1752108632872,-500.0,0.00019399,2]
[370734544,1752108632882,-377.8480396,0.00019399,2]
[370734545,1752108632891,-500.0,0.00019399,2]
[370734546,1752108632901,-500.0,0.00019399,2]
[370734547,1752108632910,-500.0,0.00019399,2]
[370734548,1752108632920,-500.0,0.00019399,2]
[370734549,1752108632929,-500.0,0.00019399,2]
[370734550,1752108632938,-500.0,0.00019399,2]
[370734551,1752108632948,-500.0,0.00019399,2]
[370734552,1752108632957,-499.99999999,0.00019399,2]
[370734553,1752108632967,-35882.41749431,0.000194,2]
[370734554,1752108632978,-7539.04612726,0.000194,2]
[370734555,1752108633010,-804.36722165,0.000194,2]
[370734556,1752108633031,-2482.51562852,0.000194,2]
[370734558,1752108637649,-279.85,0.0001863,2]
[370734559,1752108637659,-6181.65756732,0.000194,2]
[370734560,1752108637807,-140612.07799793,0.000194,2]
[370734561,1752108637819,-329.0,0.000194,2]
[370734562,1752108637830,-503.30983194,0.000194,2]
[370734563,1752108637842,-4959.0208978,0.000194,2]
[370734564,1752108637965,-516.0,0.000194,2]
[370734565,1752108638019,-662.49148471,0.000194,2]
[370734761,1752108640023,-199.877374,0.00018407,2]
[370734763,1752108640034,-34078.75584073,0.000194,2]
[370734765,1752108640044,-2361.77708,0.000194,2]
[370734767,1752108640053,-26758.2701538,0.00019431,2]
[370734769,1752108640062,-500.0,0.00019444,2]
[370734771,1752108640072,-1215.58906822,0.00019458,2]
[370734773,1752108640081,-2643.92577473,0.000195,2]
[370734775,1752108640091,-2643.92577464,0.000195,2]
[370734777,1752108640102,-2643.92577464,0.000195,2]
[370734779,1752108640112,-2643.92577464,0.000195,2]
[370734780,1752108640121,-2643.92577464,0.000195,2]
[370734782,1752108640131,-500.0,0.00019535,2]
[370734785,1752108640142,-1215.58906822,0.00019616,2]
[370734786,1752108640152,-2643.92577464,0.00019624,2]
[370734788,1752108640161,-500.0,0.00019625,2]
[370734790,1752108640170,-151.0,0.00019635,2]
[370734792,1752108640180,-151.0,0.00019635,2]
[370734794,1752108640189,-151.0,0.00019635,2]
[370734796,1752108640198,-171.98140717,0.00019635,2]
[370734798,1752108640207,-300.0,0.00019635,2]
[370734800,1752108640217,-300.0,0.00019635,2]
[370734802,1752108640226,-300.0,0.00019635,2]
[370734804,1752108640235,-151.0,0.00019635,2]
[370734806,1752108640245,-300.0,0.00019635,2]
[370734808,1752108640254,-151.0,0.00019635,2]
[370734810,1752108640264,-300.0,0.00019635,2]
[370734812,1752108640273,-151.0,0.00019635,2]
[370734814,1752108640283,-300.0,0.00019635,2]
[370734816,1752108640291,-300.0,0.00019635,2]
[370734818,1752108640300,-151.0,0.00019635,2]
[370734820,1752108640310,-300.0,0.00019635,2]
[370734822,1752108640319,-151.0,0.00019635,2]
[370734824,1752108640328,-207.4,0.00019635,2]
[370734826,1752108640338,-151.0,0.00019635,2]
[370734828,1752108640347,-300.0,0.00019635,2]
[370734829,1752108640356,-300.0,0.00019635,2]
[370734830,1752108640366,-300.0,0.00019635,2]
[370734831,1752108640379,-300.0,0.00019635,2]
[370734832,1752108640388,-300.0,0.00019635,2]
[370734833,1752108640398,-300.0,0.00019635,2]
[370734834,1752108640408,-300.0,0.00019635,2]
[370734835,1752108640418,-500.0,0.00019715,2]
[370734836,1752108640428,-225.0,0.0001973,2]
[370734837,1752108640437,-1215.58906822,0.00019774,2]
[370734838,1752108640448,-463.66,0.00019849,2]
[370734839,1752108640458,-703.41818547,0.00019858,2]
[370734840,1752108640467,-3064.09245592,0.0001987,2]
[370734841,1752108640476,-621.0,0.00019911,2]
[370734842,1752108640486,-621.0,0.00019917,2]
[370734843,1752108640495,-511.0,0.00019918,5]
[370734844,1752108640505,-621.0,0.00019928,2]
[370734845,1752108640514,-1215.58906822,0.00019932,2]
[370734846,1752108640523,-621.0,0.00019952,2]
[370734847,1752108640532,-2643.92577464,0.00019969,2]
[370734848,1752108640542,-514.0,0.0001997,2]
[370734849,1752108640551,-900.0,0.00019999,2]
[370734850,1752108640560,-2900.0,0.00019999,2]
[370734851,1752108640570,-500.0,0.00019999,2]
[370734853,1752108640580,-1004.85558791,0.0002,2]
[370734855,1752108640589,-3800.0,0.0002,6]
[370734857,1752108640599,-2880.0,0.0002,8]
[370734859,1752108640608,-621.0,0.00020001,2]
[370734861,1752108640618,-621.0,0.00020013,2]
[370734863,1752108640628,-164.66460368,0.00020031,2]
[370734865,1752108640637,-621.0,0.00020033,2]
[370734867,1752108640648,-170.40309459,0.00020045,2]
[370734869,1752108640657,-621.0,0.00020049,2]
[370734871,1752108640666,-621.0,0.00020058,2]
[370734873,1752108640676,-1215.58906822,0.00020089,2]
[370734875,1752108640685,-225.0,0.0002014,2]
[370734877,1752108640695,-8679.35,0.00020145,2]
[370734879,1752108640705,-16093.92,0.00020145,2]
[370734881,1752108640715,-621.0,0.00020172,2]
[370734883,1752108640725,-621.0,0.0002018,2]
[370734885,1752108640734,-348.4,0.00020187,2]
[370734887,1752108640743,-621.0,0.00020195,2]
[370734889,1752108640752,-621.0,0.00020215,2]
[370734891,1752108640762,-1215.58906822,0.00020247,2]
[370734893,1752108640771,-621.0,0.00020294,2]
[370734895,1752108640781,-1651.0,0.000203,2]
[370734897,1752108640791,-2643.92577464,0.00020314,3]
[370734899,1752108640801,-210.38436402,0.00020368,2]
[370734901,1752108640810,-160.0,0.00020368,2]
[370734903,1752108640820,-837.2675624,0.00020368,2]
[370734905,1752108640830,-621.0,0.00020383,2]
[370734907,1752108640839,-3775.57009336,0.0002039,2]
[370734909,1752108640849,-3144.6415,0.00020399,2]
[370734911,1752108640858,-5000.0,0.000204,2]
[370734913,1752108640867,-166.0233709,0.000204,2]
[370734915,1752108640877,-1202.369084,0.00020404,4]
[370734917,1752108640887,-1215.58906822,0.00020405,2]
[370734919,1752108640897,-312.48,0.00020409,2]
[370734921,1752108640906,-703.41818547,0.00020416,2]
[370734923,1752108640916,-2176.2239721,0.00020436,2]
[370734925,1752108640925,-181275.9259295,0.00020436,2]
[370734927,1752108640938,-52460.0202915,0.00020436,2]
[370734929,1752108640947,-5228.1462332,0.00020436,2]
[370734931,1752108640957,-500.0,0.00020439,2]
[370734933,1752108640966,-552.71139953,0.00020439,2]
[370734935,1752108640976,-365.56427748,0.00020439,2]
[370734937,1752108640985,-500.0,0.00020439,2]
[370734939,1752108640995,-201.8512569,0.00020439,2]
[370734941,1752108641004,-606.02286107,0.00020439,2]
[370734943,1752108641014,-250.0,0.00020439,2]
[370734945,1752108641023,-582.43794426,0.00020439,2]
[370734947,1752108641033,-300.0,0.00020439,2]
[370734949,1752108641042,-500.0,0.00020439,2]
[370734951,1752108641052,-263.48709078,0.00020439,2]
[370734953,1752108641061,-500.0,0.00020439,2]
[370734955,1752108641071,-500.0,0.00020439,2]
[370734957,1752108641081,-500.0,0.00020439,2]
[370734959,1752108641090,-500.0,0.00020439,2]
[370734961,1752108641099,-166.0233709,0.00020446,2]
[370734963,1752108641109,-362.81104317,0.00020446,2]
[370734965,1752108641119,-42009.1085,0.00020447,3]
[370734967,1752108641130,-234.92990945,0.00020447,2]
[370734969,1752108641140,-621.0,0.00020454,2]
[370734971,1752108641150,-168.0,0.00020458,2]
[370734973,1752108641159,-621.0,0.00020465,2]
[370734975,1752108641169,-150.0,0.0002049,2]
[370734977,1752108641179,-809.0,0.0002049,2]
[370734979,1752108641189,-578.51957811,0.000205,2]
[370734981,1752108641198,-81736.50706013,0.000205,2]
[370734983,1752108641208,-246670.72606463,0.000205,2]